[Event "1st Lasker Memorial GM 2019"]
[Site "Anogia"]
[Date "2019.09.15"]
[Round "5.2"]
[White "Beerdsen, Thomas"]
[Black "Nikolaidis, Ioannis"]
[Result "0-1"]
[ECO "B17"]
[WhiteElo "2482"]
[BlackElo "2530"]
[Annotator "ChessBase"]
[PlyCount "68"]
[EventDate "2019.09.11"]
[EventType "tourn"]
[EventCountry "GRE"]
[SourceTitle "playchess.com"]
[Source "ChessBase"]
[SourceQuality "1"]
[TimeControl "40/5400+30:1800+30"]

1. e4 {[%emt 0:00:00]} c6 {[%emt 0:02:42]} 2. d4 {[%emt 0:00:00]} d5 {[%emt 0:00:15]} 3. Nc3 {[%emt 0:00:00]} dxe4 {[%emt 0:00:11]} 4. Nxe4 {[%emt 0:00:00]} Nd7 {[%emt 0:00:05]} 5. Ng5 {[%emt 0:00:34]} Ngf6 {[%emt 0:00:12]} 6. Bd3 {[%emt 0:00:10]} e6 {[%emt 0:01:37]} 7. N1f3 {[%emt 0:00:06]} h6 {[%emt 0:00:49]} 8. Nxe6 {[%emt 0:00:06]} fxe6 {[%emt 0:00:06]} 9. Bg6+ {[%emt 0:00:05]} Ke7 {[%emt 0:00:04]} 10. c4 {[%emt 0:06:07]} Qc7 {[%emt 0:02:05]} 11. O-O {[%emt 0:01:09]} Kd8 {[%emt 0:01:26]} 12. Re1 {[%emt 0:14:09]} Bb4 {[%emt 0:06:43]} 13. Re2 {[%emt 0:06:49]} Nf8 {[%emt 0:04:18]} 14. Bd3 {[%emt 0:20:45]} Bd6 {[%emt 0:06:29]} 15. Ne5 {[%emt 0:08:24]} Bxe5 {[%emt 0:09:35]} 16. Rxe5 {[%emt 0:02:33]} Ke7 {[%emt 0:03:11]} 17. b3 {[%emt 0:05:57]} Kf7 {[%emt 0:03:04]} 18. Bb2 {[%emt 0:01:57]} Ng6 {[%emt 0:06:07]} 19. Qf3 {[%emt 0:03:26]} Rd8 {[%emt 0:09:59]} 20. Bxg6+ {[%emt 0:07:05]} Kxg6 {[%emt 0:01:02]} 21. g4 {[%emt 0:00:18]} Kh7 {[%emt 0:04:56]} 22. g5 {[%emt 0:04:41]} hxg5 {[%emt 0:04:17]} 23. Rxg5 {[%emt 0:00:14]} Rh8 {[%emt 0:10:22]} 24. d5 {[%emt 0:02:54]} Rf8 {[%emt 0:03:26]} 25. d6 {[%emt 0:07:43]} Qf7 {[%emt 0:02:43]} 26. Be5 {[%emt 0:03:25]} Kg8 {[%emt 0:03:11]} 27. Qg2 {[%emt 0:02:12]} Bd7 {[%emt 0:06:02]} 28. Kh1 {[%emt 0:02:14]} c5 {[%emt 0:03:38]} 29. Rg1 {[%emt 0:00:03]} Bc6 {[%emt 0:00:24]} 30. f3 {[%emt 0:00:07]} Ng4 {[%emt 0:01:16]} 31. Rxg7+ {[%emt 0:01:39]} Qxg7 {[%emt 0:00:18]} 32. Bxg7 {[%emt 0:00:06]} Rxf3 {[%emt 0:01:25]} 33. Be5 {[%emt 0:00:47]} Kh7 {[%emt 0:01:40]} 34. Rd1 {[%emt 0:00:40]} Nxe5 {[%emt 0:01:11]} 0-1

[Event "1st Lasker Memorial GM 2019"]
[Site "Anogia"]
[Date "2019.09.15"]
[Round "5.3"]
[White "Hristodoulou, Panagiotis"]
[Black "Alexakis, Dimitrios"]
[Result "1/2-1/2"]
[ECO "B06"]
[WhiteElo "2280"]
[BlackElo "2077"]
[Annotator "NA"]
[PlyCount "91"]
[EventDate "2019.09.11"]
[EventType "tourn"]
[EventCountry "GRE"]
[SourceTitle "playchess.com"]
[Source "ChessBase"]
[SourceQuality "1"]
[TimeControl "40/5400+30:1800+30"]

1. e4 {[%emt 0:00:00]} g6 {[%emt 0:04:34]} 2. d4 {[%emt 0:00:00]} Bg7 {[%emt 0:00:04]} 3. Nf3 {[%emt 0:00:08]} c6 {[%emt 0:00:10]} 4. h3 {[%emt 0:00:22]} d5 {[%emt 0:00:10]} 5. e5 {[%emt 0:00:17]} f6 {[%emt 0:06:57]} 6. c4 {[%emt 0:00:17]} Nh6 {[%emt 0:03:07]} 7. Nc3 {[%emt 0:00:25]} Nf7 {[%emt 0:00:29]} 8. exf6 {[%emt 0:09:57]} Bxf6 {[%emt 0:00:17]} 9. cxd5 {[%emt 0:00:11]} cxd5 {[%emt 0:00:03]} 10. Qb3 {[%emt 0:00:27]} e6 {[%emt 0:00:41]} 11. Be2 {[%emt 0:02:59]} O-O {[%emt 0:00:11]} 12. O-O {[%emt 0:00:06]} Nc6 {[%emt 0:00:09]} 13. Be3 {[%emt 0:11:04]} Nd6 {[%emt 0:01:27]} 14. Rad1 {[%emt 0:00:24]} Kh8 {[%emt 0:02:25]} 15. Bd3 {[%emt 0:14:59]} Bg7 {[%emt 0:03:17]} 16. Rfe1 {[%emt 0:04:02]} Rxf3 {[%emt 0:04:38]} 17. gxf3 {[%emt 0:00:11]} Bd7 {[%emt 0:18:33]} 18. Bf1 {[%emt 0:07:05]} Qh4 {[%emt 0:05:55]} 19. Ne2 {[%emt 0:04:09]} Rf8 {[%emt 0:07:25]} 20. Bg2 {[%emt 0:00:27]} b6 {[%emt 0:04:54]} 21. Qd3 {[%emt 0:17:21]} g5 {[%emt 0:16:35]} 22. b3 {[%emt 0:02:44]} Be8 {[%emt 0:05:09]} 23. Rc1 {[%emt 0:01:28]} Nf5 {[%emt 0:05:13]} 24. Red1 {[%emt 0:00:30]} Bf6 {[%emt 0:03:01]} 25. a3 {[%emt 0:06:04]} Rg8 {[%emt 0:01:08]} 26. Kf1 {[%emt 0:05:25]} Qh6 {[%emt 0:01:35]} 27. b4 {[%emt 0:00:34]} Nce7 {[%emt 0:02:55]} 28. b5 {[%emt 0:02:21]} Nh4 {[%emt 0:00:21]} 29. a4 {[%emt 0:00:44]} Nxg2 {[%emt 0:00:37]} 30. Kxg2 {[%emt 0:00:05]} Bg6 {[%emt 0:01:22]} 31. Qc3 {[%emt 0:01:11]} Bf5 {[%emt 0:00:23]} 32. Ng1 {[%emt 0:01:08]} Ng6 {[%emt 0:00:17]} 33. Qc7 {[%emt 0:01:07]} Qh5 {[%emt 0:01:10]} 34. Qg3 {[%emt 0:02:18]} e5 {[%emt 0:01:03]} 35. Rc6 {[%emt 0:00:10]} Nf4+ {[%emt 0:00:24]} 36. Kh2 {[%emt 0:00:08]} Qf7 {[%emt 0:00:44]} 37. Rxf6 {[%emt 0:04:24]} Qxf6 {[%emt 0:00:01]} 38. dxe5 {[%emt 0:00:05]} Qe7 {[%emt 0:00:50]} 39. e6 {[%emt 0:02:52]} h6 {[%emt 0:00:40]} 40. Bxf4 {[%emt 0:00:00]} gxf4 {[%emt 0:00:00]} 41. Qxf4 {[%emt 0:00:47]} Qxe6 {[%emt 0:09:43]} 42. Ne2 {[%emt 0:01:11]} Qxe2 {[%emt 0:18:40]} 43. Qxh6+ {[%emt 0:00:09]} Bh7 {[%emt 0:00:03]} 44. Qf6+ {[%emt 0:00:09]} Rg7 {[%emt 0:00:06]} 45. Qd8+ {[%emt 0:00:05]} Bg8 {[%emt 0:00:13]} 46. Qh4+ {[%emt 0:00:05]} 1/2-1/2

[Event "1st Lasker Memorial GM 2019"]
[Site "Anogia"]
[Date "2019.09.15"]
[Round "5.4"]
[White "Delchev, Aleksander"]
[Black "Alexakis, Georgios"]
[Result "1-0"]
[ECO "D46"]
[WhiteElo "2568"]
[BlackElo "2175"]
[Annotator "ChessBase"]
[PlyCount "63"]
[EventDate "2019.09.11"]
[EventType "tourn"]
[EventCountry "GRE"]
[SourceTitle "playchess.com"]
[Source "ChessBase"]
[SourceQuality "1"]
[TimeControl "40/5400+30:1800+30"]

1. d4 {[%emt 0:02:56]} Nf6 {[%emt 0:00:00]} 2. Nf3 {[%emt 0:00:07]} e6 {[%emt 0:00:00]} 3. c4 {[%emt 0:00:05]} d5 {[%emt 0:00:16]} 4. Nc3 {[%emt 0:00:38]} c6 {[%emt 0:00:46]} 5. e3 {[%emt 0:00:22]} Bd6 {[%emt 0:00:59]} 6. Bd3 {[%emt 0:01:59]} Nbd7 {[%emt 0:01:35]} 7. e4 {[%emt 0:00:08]} dxe4 {[%emt 0:04:26]} 8. Nxe4 {[%emt 0:00:05]} Nxe4 {[%emt 0:00:51]} 9. Bxe4 {[%emt 0:00:06]} Nf6 {[%emt 0:01:56]} 10. Bc2 {[%emt 0:00:27]} h6 {[%emt 0:12:14]} 11. O-O {[%emt 0:00:07]} O-O {[%emt 0:00:26]} 12. b3 {[%emt 0:02:44]} b5 {[%emt 0:07:11]} 13. c5 {[%emt 0:05:35]} Bc7 {[%emt 0:01:58]} 14. Bb2 {[%emt 0:03:03]} a5 {[%emt 0:03:14]} 15. a3 {[%emt 0:01:55]} Ba6 {[%emt 0:02:29]} 16. Re1 {[%emt 0:02:53]} b4 {[%emt 0:08:09]} 17. axb4 {[%emt 0:09:04]} axb4 {[%emt 0:00:14]} 18. Qd2 {[%emt 0:00:05]} Bb5 {[%emt 0:08:17]} 19. Rxa8 {[%emt 0:00:38]} Qxa8 {[%emt 0:00:05]} 20. Ra1 {[%emt 0:00:05]} Qd8 {[%emt 0:01:32]} 21. Qxb4 {[%emt 0:01:04]} Nd5 {[%emt 0:01:26]} 22. Qd2 {[%emt 0:01:24]} Qf6 {[%emt 0:03:52]} 23. Be4 {[%emt 0:03:19]} Rd8 {[%emt 0:03:21]} 24. g3 {[%emt 0:01:06]} Qe7 {[%emt 0:03:43]} 25. Ra7 {[%emt 0:14:54]} Rd7 {[%emt 0:06:14]} 26. Bd3 {[%emt 0:08:46]} Bxd3 {[%emt 0:08:07]} 27. Qxd3 {[%emt 0:00:23]} f6 {[%emt 0:02:51]} 28. Qa6 {[%emt 0:03:57]} e5 {[%emt 0:09:48]} 29. dxe5 {[%emt 0:01:05]} Qxc5 {[%emt 0:00:45]} 30. Ra8+ {[%emt 0:13:09]} Kf7 {[%emt 0:02:33]} 31. Qe2 {[%emt 0:05:13]} Qe7 {[%emt 0:03:13]} 32. e6+ {[%emt 0:02:05] Kxe6} 1-0

[Event "1st Lasker Memorial GM 2019"]
[Site "Anogia"]
[Date "2019.09.15"]
[Round "5.5"]
[White "Bronstein, Or"]
[Black "Colijn, Stefan"]
[Result "1/2-1/2"]
[ECO "E04"]
[WhiteElo "2404"]
[BlackElo "2329"]
[Annotator "NA"]
[PlyCount "47"]
[EventDate "2019.09.11"]
[EventType "tourn"]
[EventCountry "GRE"]
[SourceTitle "playchess.com"]
[Source "ChessBase"]
[SourceQuality "1"]
[TimeControl "40/5400+30:1800+30"]

1. d4 {[%emt 0:00:00]} d5 {[%emt 0:00:00]} 2. c4 {[%emt 0:00:00]} c6 {[%emt 0:00:00]} 3. Nf3 {[%emt 0:00:41]} Nf6 {[%emt 0:00:00]} 4. g3 {[%emt 0:00:25]} dxc4 {[%emt 0:00:23]} 5. Bg2 {[%emt 0:00:06]} e6 {[%emt 0:00:21]} 6. a4 {[%emt 0:02:16]} a5 {[%emt 0:00:06]} 7. Qc2 {[%emt 0:03:05]} Bb4+ {[%emt 0:07:30]} 8. Bd2 {[%emt 0:00:17]} Qe7 {[%emt 0:02:14]} 9. Na3 {[%emt 0:09:11]} Bxd2+ {[%emt 0:03:54]} 10. Nxd2 {[%emt 0:01:14]} e5 {[%emt 0:02:49]} 11. dxe5 {[%emt 0:01:41]} Qxe5 {[%emt 0:04:08]} 12. Naxc4 {[%emt 0:00:31]} Qc5 {[%emt 0:03:13]} 13. O-O {[%emt 0:03:09]} Be6 {[%emt 0:03:59]} 14. Rac1 {[%emt 0:22:07]} O-O {[%emt 0:05:54]} 15. e4 {[%emt 0:03:46]} Nbd7 {[%emt 0:04:53]} 16. Ne3 {[%emt 0:12:22]} Qxc2 {[%emt 0:08:44]} 17. Rxc2 {[%emt 0:00:02]} Nb6 {[%emt 0:00:16]} 18. f4 {[%emt 0:00:31]} Ng4 {[%emt 0:01:21]} 19. Nxg4 {[%emt 0:09:03]} Bxg4 {[%emt 0:04:26]} 20. Nb3 {[%emt 0:00:08]} Nxa4 {[%emt 0:02:01]} 21. Ra1 {[%emt 0:00:19]} Be6 {[%emt 0:00:21]} 22. Nd4 {[%emt 0:01:09]} Nb6 {[%emt 0:00:02]} 23. f5 {[%emt 0:02:17]} Bc4 {[%emt 0:00:05]} 24. b3 {[%emt 0:02:03]} 1/2-1/2

[Event "1st Lasker Memorial GM 2019"]
[Site "Anogia"]
[Date "2019.09.16"]
[Round "6.1"]
[White "Avramidou, Anastasia"]
[Black "Colijn, Stefan"]
[Result "0-1"]
[ECO "D13"]
[WhiteElo "2249"]
[BlackElo "2329"]
[Annotator "ChessBase"]
[PlyCount "104"]
[EventDate "2019.09.11"]
[EventType "tourn"]
[EventCountry "GRE"]
[SourceTitle "playchess.com"]
[Source "ChessBase"]
[SourceQuality "1"]
[TimeControl "40/5400+30:1800+30"]

1. Nf3 {[%emt 0:04:03]} d5 {[%emt 0:00:00]} 2. d4 {[%emt 0:00:18]} Nf6 {[%emt 0:00:16]} 3. c4 {[%emt 0:00:11]} c6 {[%emt 0:01:09]} 4. cxd5 {[%emt 0:00:08]} cxd5 {[%emt 0:00:06]} 5. Nc3 {[%emt 0:00:08]} Nc6 {[%emt 0:00:14]} 6. Bf4 {[%emt 0:00:07]} Nh5 {[%emt 0:00:21]} 7. Be5 {[%emt 0:07:42]} f6 {[%emt 0:12:56]} 8. Bg3 {[%emt 0:00:08]} e5 {[%emt 0:07:02]} 9. e3 {[%emt 0:03:05]} Nxg3 {[%emt 0:04:34]} 10. hxg3 {[%emt 0:00:12]} Be6 {[%emt 0:01:27]} 11. Bb5 {[%emt 0:05:52]} e4 {[%emt 0:03:20]} 12. Nd2 {[%emt 0:02:10]} Rc8 {[%emt 0:08:56]} 13. Qb3 {[%emt 0:12:20]} Kf7 {[%emt 0:07:46]} 14. Rc1 {[%emt 0:12:40]} Na5 {[%emt 0:03:14]} 15. Qa4 {[%emt 0:01:10]} a6 {[%emt 0:01:45]} 16. Be2 {[%emt 0:01:19]} b5 {[%emt 0:00:50]} 17. Qd1 {[%emt 0:00:06]} Bd6 {[%emt 0:01:31]} 18. g4 {[%emt 0:09:33]} Qd7 {[%emt 0:03:50]} 19. a3 {[%emt 0:10:17]} Qe7 {[%emt 0:12:41]} 20. Rh5 {[%emt 0:06:38]} g5 {[%emt 0:04:42]} 21. f3 {[%emt 0:04:44]} exf3 {[%emt 0:02:02]} 22. Bxf3 {[%emt 0:00:12]} Kg7 {[%emt 0:02:36]} 23. Kf2 {[%emt 0:00:44]} Nc4 {[%emt 0:03:08]} 24. Nxc4 {[%emt 0:00:11]} dxc4 {[%emt 0:00:32]} 25. Qc2 {[%emt 0:03:24]} Bf7 {[%emt 0:03:07]} 26. Rh3 {[%emt 0:01:25]} Bg6 {[%emt 0:00:27]} 27. Be4 {[%emt 0:04:03]} Rce8 {[%emt 0:01:22]} 28. Bf5 {[%emt 0:00:09]} Bxf5 {[%emt 0:05:03]} 29. Qxf5 {[%emt 0:00:07]} Qe6 {[%emt 0:00:04]} 30. Rf3 {[%emt 0:04:08]} h5 {[%emt 0:00:56]} 31. gxh5 {[%emt 0:00:59]} Rxh5 {[%emt 0:00:35]} 32. Qxe6 {[%emt 0:00:03]} Rxe6 {[%emt 0:00:02]} 33. Rf5 {[%emt 0:00:06]} Bb8 {[%emt 0:04:03]} 34. a4 {[%emt 0:02:52]} Kg6 {[%emt 0:00:23]} 35. Rc5 {[%emt 0:00:50]} Rxe3 {[%emt 0:00:25]} 36. axb5 {[%emt 0:01:50]} axb5 {[%emt 0:00:25]} 37. Kxe3 {[%emt 0:02:32]} Bf4+ {[%emt 0:00:02]} 38. Ke2 {[%emt 0:01:18]} Bxc1 {[%emt 0:00:02]} 39. Rxb5 {[%emt 0:00:04]} Rh4 {[%emt 0:00:23]} 40. Kd1 {[%emt 0:00:00]} Be3 {[%emt 0:00:00]} 41. d5 {[%emt 0:01:39]} Rd4+ {[%emt 0:05:09]} 42. Ke2 {[%emt 0:03:03]} Bf4 {[%emt 0:00:06]} 43. Rb6 {[%emt 0:11:16]} g4 {[%emt 0:07:00]} 44. Rc6 {[%emt 0:03:23]} Kf5 {[%emt 0:04:50]} 45. Kf1 {[%emt 0:07:21]} g3 {[%emt 0:04:20]} 46. Re6 {[%emt 0:01:32]} Be5 {[%emt 0:01:00]} 47. Ke2 {[%emt 0:04:01]} Rd3 {[%emt 0:04:40]} 48. Nd1 {[%emt 0:01:40]} Bf4 {[%emt 0:07:50]} 49. Rc6 {[%emt 0:02:04]} Rd2+ {[%emt 0:00:45]} 50. Ke1 {[%emt 0:00:03]} Rxg2 {[%emt 0:00:22]} 51. Rxc4 {[%emt 0:00:05]} Rg1+ {[%emt 0:00:14]} 52. Ke2 {[%emt 0:00:03]} Rxd1 {[%emt 0:00:11]} 0-1

[Event "1st Lasker Memorial GM 2019"]
[Site "Anogia"]
[Date "2019.09.16"]
[Round "6.2"]
[White "Alexakis, Georgios"]
[Black "Bronstein, Or"]
[Result "0-1"]
[ECO "B51"]
[WhiteElo "2175"]
[BlackElo "2404"]
[Annotator "RC"]
[PlyCount "118"]
[EventDate "2019.09.11"]
[EventType "tourn"]
[EventCountry "GRE"]
[SourceTitle "playchess.com"]
[Source "ChessBase"]
[SourceQuality "1"]
[TimeControl "40/5400+30:1800+30"]

1. e4 {[%emt 0:01:04]} c5 {[%emt 0:00:00]} 2. Nf3 {[%emt 0:00:21]} d6 {[%emt 0:00:00]} 3. Bb5+ {[%emt 0:00:49]} Nd7 {[%emt 0:00:00]} 4. a4 {[%emt 0:00:30]} a6 {[%emt 0:07:48]} 5. Be2 {[%emt 0:01:53]} Ngf6 {[%emt 0:00:28]} 6. Nc3 {[%emt 0:00:17]} b6 {[%emt 0:07:17]} 7. d4 {[%emt 0:05:01]} cxd4 {[%emt 0:00:14]} 8. Nxd4 {[%emt 0:04:42]} Bb7 {[%emt 0:00:50]} 9. f3 {[%emt 0:00:25]} e6 {[%emt 0:04:24]} 10. Be3 {[%emt 0:02:15]} Qc7 {[%emt 0:00:54]} 11. O-O {[%emt 0:02:40]} Be7 {[%emt 0:03:51]} 12. Qe1 {[%emt 0:08:26]} O-O {[%emt 0:09:17]} 13. Qg3 {[%emt 0:02:39]} Kh8 {[%emt 0:03:37]} 14. Rad1 {[%emt 0:07:35]} Rac8 {[%emt 0:04:35]} 15. Rd2 {[%emt 0:08:48]} Qb8 {[%emt 0:02:20]} 16. Nb3 {[%emt 0:08:30]} Bd8 {[%emt 0:17:40]} 17. Rfd1 {[%emt 0:15:50]} Bc7 {[%emt 0:00:28]} 18. Qh3 {[%emt 0:04:46]} Qa8 {[%emt 0:12:06]} 19. Bf4 {[%emt 0:02:20]} Ne5 {[%emt 0:00:21]} 20. Bg5 {[%emt 0:03:04]} Ng6 {[%emt 0:00:14]} 21. g3 {[%emt 0:01:58]} Nd7 {[%emt 0:02:41]} 22. Nd4 {[%emt 0:04:19]} Bb8 {[%emt 0:02:49]} 23. Be3 {[%emt 0:05:18]} Rfe8 {[%emt 0:02:11]} 24. Bd3 {[%emt 0:01:40]} Nde5 {[%emt 0:04:04]} 25. Re2 {[%emt 0:02:12]} Nxd3 {[%emt 0:01:59]} 26. cxd3 {[%emt 0:00:53]} d5 {[%emt 0:00:29]} 27. Nb3 {[%emt 0:00:55]} Ba7 {[%emt 0:00:49]} 28. Qg2 {[%emt 0:02:28]} Red8 {[%emt 0:01:00]} 29. Qf2 {[%emt 0:01:09]} Ne5 {[%emt 0:02:38]} 30. a5 {[%emt 0:01:22]} dxe4 {[%emt 0:00:25]} 31. dxe4 {[%emt 0:00:45]} Rxd1+ {[%emt 0:02:14]} 32. Nxd1 {[%emt 0:00:01]} Nd3 {[%emt 0:00:16]} 33. Qf1 {[%emt 0:00:42]} bxa5 {[%emt 0:01:51]} 34. Nf2 {[%emt 0:00:31]} a4 {[%emt 0:01:35]} 35. Nd4 {[%emt 0:00:35]} Ne5 {[%emt 0:01:11]} 36. Kg2 {[%emt 0:00:29]} Nc4 {[%emt 0:00:44]} 37. Nc2 {[%emt 0:00:18]} Nxb2 {[%emt 0:00:40]} 38. Na3 {[%emt 0:00:46]} Bxe3 {[%emt 0:02:52]} 39. Rxe3 {[%emt 0:00:04]} Qa7 {[%emt 0:00:07]} 40. Qe2 {[%emt 0:00:00]} Qd4 {[%emt 0:00:00]} 41. Qe1 {[%emt 0:06:29]} e5 {[%emt 0:10:21]} 42. Re2 {[%emt 0:04:33]} Nd3 {[%emt 0:00:53]} 43. Qb1 {[%emt 0:09:28]} Nc5 {[%emt 0:03:24]} 44. Nc2 {[%emt 0:04:14]} Qc4 {[%emt 0:01:22]} 45. Qd1 {[%emt 0:02:06]} Nb3 {[%emt 0:00:50]} 46. Ne3 {[%emt 0:01:02]} Qd4 {[%emt 0:00:52]} 47. Qb1 {[%emt 0:01:18]} g6 {[%emt 0:02:12]} 48. Nc2 {[%emt 0:02:22]} Qc4 {[%emt 0:00:26]} 49. Qd1 {[%emt 0:00:07]} a5 {[%emt 0:01:35]} 50. Ng4 {[%emt 0:03:00]} Ba6 {[%emt 0:06:49]} 51. Rf2 {[%emt 0:00:04]} Qd3 {[%emt 0:00:58]} 52. Qb1 {[%emt 0:00:59]} Qc3 {[%emt 0:01:09]} 53. Nce3 {[%emt 0:01:52]} Bd3 {[%emt 0:00:08]} 54. Qa2 {[%emt 0:00:31]} h5 {[%emt 0:01:03]} 55. Nf6 {[%emt 0:00:28]} Qa1 {[%emt 0:03:52]} 56. Qxa1 {[%emt 0:00:21]} Nxa1 {[%emt 0:00:02]} 57. Rd2 {[%emt 0:00:38]} Nc2 {[%emt 0:01:00]} 58. Ned5 {[%emt 0:00:35]} a3 {[%emt 0:00:11]} 59. Rxd3 {[%emt 0:00:29]} Ne1+ {[%emt 0:00:19]} 0-1

[Event "1st Lasker Memorial GM 2019"]
[Site "Anogia"]
[Date "2019.09.16"]
[Round "6.4"]
[White "Nikolaidis, Ioannis"]
[Black "Hristodoulou, Panagiotis"]
[Result "1-0"]
[ECO "D47"]
[WhiteElo "2530"]
[BlackElo "2280"]
[Annotator "ChessBase"]
[PlyCount "77"]
[EventDate "2019.09.11"]
[EventType "tourn"]
[EventCountry "GRE"]
[SourceTitle "playchess.com"]
[Source "ChessBase"]
[SourceQuality "1"]
[TimeControl "40/5400+30:1800+30"]

1. d4 {[%emt 0:01:55]} d5 {[%emt 0:00:00]} 2. c4 {[%emt 0:00:25]} e6 {[%emt 0:00:00]} 3. Nc3 {[%emt 0:00:55]} c6 {[%emt 0:00:06]} 4. e3 {[%emt 0:00:35]} Nf6 {[%emt 0:00:11]} 5. Nf3 {[%emt 0:00:16]} Nbd7 {[%emt 0:00:10]} 6. Bd3 {[%emt 0:01:23]} dxc4 {[%emt 0:00:16]} 7. Bxc4 {[%emt 0:00:03]} b5 {[%emt 0:00:13]} 8. Be2 {[%emt 0:00:39]} Bb7 {[%emt 0:01:45]} 9. O-O {[%emt 0:00:44]} Be7 {[%emt 0:00:17]} 10. a3 {[%emt 0:20:16]} a5 {[%emt 0:00:20]} 11. b3 {[%emt 0:03:28]} O-O {[%emt 0:01:20]} 12. Bb2 {[%emt 0:01:17]} Qb8 {[%emt 0:02:41]} 13. Rc1 {[%emt 0:08:00]} Rc8 {[%emt 0:03:33]} 14. h3 {[%emt 0:03:30]} h6 {[%emt 0:02:40]} 15. Qd3 {[%emt 0:12:08]} Ba6 {[%emt 0:29:20]} 16. Qb1 {[%emt 0:03:31]} b4 {[%emt 0:02:39]} 17. Bxa6 {[%emt 0:02:00]} bxc3 {[%emt 0:00:45]} 18. Bxc8 {[%emt 0:00:42]} cxb2 {[%emt 0:00:17]} 19. Rxc6 {[%emt 0:03:41]} Qxb3 {[%emt 0:06:52]} 20. Bxd7 {[%emt 0:03:46]} Nxd7 {[%emt 0:00:15]} 21. Nd2 {[%emt 0:06:53]} Qb5 {[%emt 0:21:50]} 22. Rc2 {[%emt 0:04:17]} Bxa3 {[%emt 0:00:33]} 23. Nc4 {[%emt 0:01:23]} Bb4 {[%emt 0:00:31]} 24. Nxb2 {[%emt 0:00:45]} Nb6 {[%emt 0:03:35]} 25. Nd3 {[%emt 0:01:37]} Rb8 {[%emt 0:05:26]} 26. Rc5 {[%emt 0:02:21]} Qa4 {[%emt 0:00:21]} 27. Nxb4 {[%emt 0:00:14]} axb4 {[%emt 0:00:06]} 28. Qa1 {[%emt 0:02:14]} Qd7 {[%emt 0:01:54]} 29. Rb1 {[%emt 0:02:23]} Nd5 {[%emt 0:00:33]} 30. Ra5 {[%emt 0:02:30]} f5 {[%emt 0:04:21]} 31. Qa4 {[%emt 0:02:35]} Qd8 {[%emt 0:07:58]} 32. Rxd5 {[%emt 0:04:37]} Qxd5 {[%emt 0:00:26]} 33. Rxb4 {[%emt 0:00:02]} Ra8 {[%emt 0:00:39]} 34. Qd1 {[%emt 0:00:24]} Kh7 {[%emt 0:03:27]} 35. Qb1 {[%emt 0:01:15]} Kg8 {[%emt 0:01:37]} 36. Rb5 {[%emt 0:01:03]} Qa2 {[%emt 0:00:31]} 37. Rb8+ {[%emt 0:00:40]} Kh7 {[%emt 0:00:08]} 38. Qxa2 {[%emt 0:00:20]} Rxa2 {[%emt 0:00:04]} 39. Rb6 {[%emt 0:00:14]} 1-0

[Event "1st Lasker Memorial GM 2019"]
[Site "Anogia"]
[Date "2019.09.16"]
[Round "6.5"]
[White "Rozentalis, Eduardas"]
[Black "Beerdsen, Thomas"]
[Result "1-0"]
[ECO "C00"]
[WhiteElo "2533"]
[BlackElo "2482"]
[Annotator "ChessBase"]
[PlyCount "79"]
[EventDate "2019.09.11"]
[EventType "tourn"]
[EventCountry "GRE"]
[SourceTitle "playchess.com"]
[Source "ChessBase"]
[SourceQuality "1"]
[TimeControl "40/5400+30:1800+30"]

1. e4 {[%emt 0:00:00]} c5 {[%emt 0:03:56]} 2. Nf3 {[%emt 0:00:00]} e6 {[%emt 0:00:06]} 3. g3 {[%emt 0:00:21]} Nc6 {[%emt 0:00:05]} 4. Bg2 {[%emt 0:00:26]} Nf6 {[%emt 0:00:07]} 5. d3 {[%emt 0:01:52]} d5 {[%emt 0:01:24]} 6. Nbd2 {[%emt 0:00:17]} Be7 {[%emt 0:00:26]} 7. O-O {[%emt 0:00:14]} b6 {[%emt 0:02:48]} 8. Re1 {[%emt 0:01:14]} Qc7 {[%emt 0:01:04]} 9. c3 {[%emt 0:03:20]} Bb7 {[%emt 0:00:49]} 10. a3 {[%emt 0:03:48]} O-O-O {[%emt 0:01:20]} 11. e5 {[%emt 0:05:08]} Nd7 {[%emt 0:00:52]} 12. d4 {[%emt 0:00:05]} g5 {[%emt 0:00:38]} 13. h3 {[%emt 0:02:39]} h5 {[%emt 0:01:24]} 14. Nf1 {[%emt 0:00:27]} Rdg8 {[%emt 0:01:00]} 15. b4 {[%emt 0:00:45]} c4 {[%emt 0:04:04]} 16. a4 {[%emt 0:08:11]} Kb8 {[%emt 0:05:51]} 17. b5 {[%emt 0:03:28]} Na5 {[%emt 0:00:31]} 18. Ba3 {[%emt 0:00:10]} Nf8 {[%emt 0:04:10]} 19. Bxe7 {[%emt 0:12:19]} Qxe7 {[%emt 0:00:06]} 20. N3h2 {[%emt 0:00:07]} Rg7 {[%emt 0:08:29]} 21. Ra2 {[%emt 0:02:11]} Bc8 {[%emt 0:04:19]} 22. Qf3 {[%emt 0:04:52]} Nd7 {[%emt 0:03:31]} 23. Qe3 {[%emt 0:01:49]} Bb7 {[%emt 0:06:08]} 24. Nf3 {[%emt 0:04:21]} Nf8 {[%emt 0:06:37]} 25. N1h2 {[%emt 0:01:38]} g4 {[%emt 0:03:29]} 26. hxg4 {[%emt 0:02:26]} hxg4 {[%emt 0:00:06]} 27. Nh4 {[%emt 0:01:01]} Ng6 {[%emt 0:00:30]} 28. Nxg6 {[%emt 0:01:07]} Rxg6 {[%emt 0:00:05]} 29. Qf4 {[%emt 0:01:10]} Rh5 {[%emt 0:00:25]} 30. Nf1 {[%emt 0:03:26]} Qf8 {[%emt 0:05:38]} 31. Ne3 {[%emt 0:03:27]} Qg7 {[%emt 0:01:10]} 32. Rd2 {[%emt 0:05:01]} Nb3 {[%emt 0:03:07]} 33. Rdd1 {[%emt 0:01:03]} Qh7 {[%emt 0:01:49]} 34. Kf1 {[%emt 0:01:58]} Kc8 {[%emt 0:05:46]} 35. Ke2 {[%emt 0:09:08]} f6 {[%emt 0:12:18]} 36. Rh1 {[%emt 0:04:59]} Rxh1 {[%emt 0:02:43]} 37. Rxh1 {[%emt 0:01:17]} Rh6 {[%emt 0:09:10]} 38. Be4 {[%emt 0:00:57]} Nc1+ {[%emt 0:01:12]} 39. Kd2 {[%emt 0:00:26]} Nb3+ {[%emt 0:00:53]} 40. Kc2 {[%emt 0:00:00]} 1-0